[Event "FIDE World Rapid-ch Open 2018"]
[White "Vokhidov, Shamsiddin"]
[Black "Demidov, Mikhail"]
[Site "St. Petersburg"]
[Round "15.47"]
[Annotator "ChessBase"]
[Result "1-0"]
[Date "2018.12.28"]
[WhiteElo "2480"]
[BlackElo "2520"]
[PlyCount "101"]
[TimeControl "900+10"]

1. e4 {[%emt 0:0:0]} e6 {[%emt 0:0:0]} 2. d4 {[%emt 0:0:0]} d5 {[%emt 0:0:0]} 3. Nd2 {[%emt 0:0:0]} dxe4 {[%emt 0:0:5]} 4. Nxe4 {[%emt 0:0:0]} Bd7 {[%emt 0:0:1]} 5. Nf3 {[%emt 0:0:0]} Bc6 {[%emt 0:0:0]} 6. Bd3 {[%emt 0:0:0]
} Nd7 {[%emt 0:0:2]} 7. c3 {[%emt 0:0:0]} Bxe4 {[%emt 0:0:0]} 8. Bxe4 {[%emt 0:0:0]} c6 {[%emt 0:0:1]} 9. Bf4 {[%emt 0:0:6]} Ngf6 {[%emt 0:0:2]} 10. Bc2 {[%emt 0:0:2]} g6 {[%emt 0:0:4]} 11. a4 {[%emt 0:0:0]} a5 {[%emt 0:0:6]} 12. Qe2 {[%emt 0:0:15]} Bg7 {[%emt 0:0:4]} 13. 0-0 {[%emt 0:0:6]} 0-0 {[%emt 0:0:3]} 14. h3 {[%emt 0:0:1]} Re8 {[%emt 0:0:0]} 15. Rfe1 {[%emt 0:0:2]} Nd5 {[%emt 0:0:11]} 16. Bh2 {[%emt 0:0:4]} Bh6 {[%emt 0:0:16]} 17. Ne5 {[%emt 0:0:36]} Nxe5 {[%emt 0:0:25]} 18. Bxe5 {[%emt 0:0:10]
} Bg7 {[%emt 0:1:11]} 19. Bg3 {[%emt 0:0:4]} Qd7 {[%emt 0:0:0]} 20. Rad1 {[%emt 0:0:26]} Rad8 {[%emt 0:0:7]} 21. Qf3 {[%emt 0:0:5]} Bf8 {[%emt 0:0:25]} 22. h4 {[%emt 0:0:8]} h5 {[%emt 0:0:39]} 23. Be5 {[%emt 0:0:6]
} Bg7 {[%emt 0:0:15]} 24. g4 {[%emt 0:0:38]} hxg4 {[%emt 0:0:0]} 25. Qxg4 {[%emt 0:0:1]} f5 {[%emt 0:0:0]} 26. Qxg6 {[%emt 0:4:34]} Qf7 {[%emt 0:0:1]} 27. Qg5 {[%emt 0:0:49]} Kh7 {[%emt 0:0:56]} 28. Kh2 {[%emt 0:2:26]
} Bxe5+ {[%emt 0:1:16]} 29. Rxe5 {[%emt 0:0:2]} Rg8 {[%emt 0:0:0]} 30. Rxf5 {[%emt 0:1:1]} Rxg5 {[%emt 0:0:50]} 31. Rxf7+ Kg8 32. Rxb7 {[%emt 0:0:17]} Rg7 {[%emt 0:0:1]} 33. Rg1 {[%emt 0:0:15]} Rxg1 {[%emt 0:0:0]} 34. Kxg1 {[%emt 0:0:0]} Rf8 {[%emt 0:0:36]} 35. h5 {[%emt 0:0:8]} Rf6 {[%emt 0:0:15]} 36. Be4 {[%emt 0:0:15]} Nf4 {[%emt 0:0:2]} 37. Bxc6 {[%emt 0:0:42]
} Nxh5 {[%emt 0:0:1]} 38. Be4 {[%emt 0:0:8]} Nf4 {[%emt 0:0:0]} 39. f3 {[%emt 0:0:1]} Rh6 {[%emt 0:0:39]} 40. b4 {[%emt 0:1:3]} Rh5 {[%emt 0:0:34]
} 41. Kf2 {[%emt 0:0:15]} axb4 {[%emt 0:0:17]} 42. cxb4 {[%emt 0:0:3]
} Rh1 {[%emt 0:0:1]} 43. b5 {[%emt 0:0:22]} Ra1 {[%emt 0:0:0]} 44. b6 {[%emt 0:0:10]} Ra2+ {[%emt 0:0:9]} 45. Ke3 {[%emt 0:0:40]} Ng2+ {[%emt 0:0:3]} 46. Kd3 {[%emt 0:0:2]} Nf4+ {[%emt 0:0:24]} 47. Kc3 {[%emt 0:0:1]
} Ne2+ {[%emt 0:0:10]} 48. Kb3 {[%emt 0:0:5]} Nc1+ {[%emt 0:0:0]} 49. Kb4 {[%emt 0:0:2]} Rb2+ {[%emt 0:0:12]} 50. Kc3 {[%emt 0:0:2]} Ra2 {[%emt 0:0:4]} 51. Rc7 {[%emt 0:1:24]} 1-0

[Event "FIDE World Rapid-ch Open 2018"]
[White "Tang, Andrew"]
[Black "Sjugirov, Sanan"]
[Site "St. Petersburg"]
[Round "15.48"]
[Annotator "ChessBase"]
[Result "1-0"]
[Date "2018.12.28"]
[WhiteElo "2487"]
[BlackElo "2663"]
[PlyCount "125"]
[TimeControl "900+10"]

1. d4 {[%emt 0:0:0]} Nf6 {[%emt 0:0:0]} 2. c4 {[%emt 0:0:0]} g6 {[%emt 0:0:0]} 3. f3 {[%emt 0:0:0]} c5 {[%emt 0:0:0]} 4. d5 {[%emt 0:0:0]} d6 {[%emt 0:0:3]
} 5. e4 {[%emt 0:0:0]} Bg7 {[%emt 0:0:3]} 6. Nc3 {[%emt 0:0:0]} 0-0 {[%emt 0:0:13]} 7. Nge2 {[%emt 0:0:2]} e6 {[%emt 0:0:2]} 8. Ng3 {[%emt 0:0:1]
} exd5 {[%emt 0:0:2]} 9. cxd5 {[%emt 0:0:2]} a6 {[%emt 0:0:0]} 10. a4 {[%emt 0:0:2]} h5 {[%emt 0:0:5]} 11. Bg5 {[%emt 0:0:2]} Qe8 {[%emt 0:0:39]
} 12. Qd2 {[%emt 0:0:7]} Nbd7 {[%emt 0:0:18]} 13. Be2 {[%emt 0:0:6]
} Nh7 {[%emt 0:0:5]} 14. Bh6 {[%emt 0:0:1]} Bxh6 {[%emt 0:0:0]} 15. Qxh6 {[%emt 0:0:3]} Qe5 {[%emt 0:0:3]} 16. f4 {[%emt 0:0:55]} Qg7 {[%emt 0:0:29]} 17. Qxg7+ {[%emt 0:0:3]} Kxg7 {[%emt 0:0:2]} 18. Nf1 {[%emt 0:0:36]
} Nhf6 {[%emt 0:3:26]} 19. Nd2 {[%emt 0:0:18]} Rb8 {[%emt 0:0:0]} 20. Nc4 {[%emt 0:2:23]} Ne8 {[%emt 0:0:19]} 21. a5 {[%emt 0:0:32]} b5 {[%emt 0:0:12]
} 22. axb6 {[%emt 0:0:2]} Nxb6 {[%emt 0:0:2]} 23. Na5 {[%emt 0:0:7]
} Nc7 {[%emt 0:0:13]} 24. 0-0 {[%emt 0:1:46]} Bd7 {[%emt 0:0:0]} 25. Nc6 {[%emt 0:0:36]} Ra8 {[%emt 0:0:32]} 26. Rfd1 {[%emt 0:0:16]} Rfe8 {[%emt 0:0:21]} 27. Bf3 {[%emt 0:0:31]} f6 {[%emt 0:1:26]} 28. Kf2 {[%emt 0:2:32]
} h4 {[%emt 0:0:11]} 29. g3 {[%emt 0:0:38]} hxg3+ {[%emt 0:0:0]} 30. hxg3 {[%emt 0:0:2]} g5 {[%emt 0:0:28]} 31. b3 {[%emt 0:1:23]} Rh8 {[%emt 0:0:39]} 32. Bg2 {[%emt 0:1:1]} Rae8 {[%emt 0:1:28]} 33. f5 {[%emt 0:2:6]
} Ra8 {[%emt 0:0:49]} 34. Ra2 {[%emt 0:0:13]} Nc8 {[%emt 0:0:0]} 35. Na5 {[%emt 0:0:51]} Rb8 {[%emt 0:0:21]} 36. Kg1 {[%emt 0:0:19]} Rb4 {[%emt 0:0:28]} 37. Bf1 {[%emt 0:0:44]} Kf8 {[%emt 0:1:2]} 38. Rda1 {[%emt 0:0:47]
} Ke8 {[%emt 0:0:33]} 39. Ra3 {[%emt 0:0:19]} Na7 {[%emt 0:0:0]} 40. Bxa6 {[%emt 0:0:41]} Ke7 {[%emt 0:0:56]} 41. Bc4 {[%emt 0:0:32]} Rhb8 {[%emt 0:0:26]} 42. Kf2 {[%emt 0:0:27]} Kf8 {[%emt 0:0:27]} 43. Nb7 {[%emt 0:0:25]
} Nc8 {[%emt 0:0:29]} 44. Nd8 {[%emt 0:0:9]} Nb6 {[%emt 0:0:0]} 45. Ne6+ {[%emt 0:0:6]} Bxe6 {[%emt 0:0:5]} 46. dxe6 {[%emt 0:0:10]} Nxc4 {[%emt 0:0:3]} 47. bxc4 {[%emt 0:0:2]} Rxc4 {[%emt 0:0:3]} 48. Rh1 {[%emt 0:0:6]
} Kg8 {[%emt 0:0:17]} 49. Rh6 {[%emt 0:0:5]} Ne8 {[%emt 0:0:0]} 50. Rg6+ {[%emt 0:0:12]} Kh8 {[%emt 0:0:14]} 51. Ke2 {[%emt 0:0:44]} d5 {[%emt 0:0:30]} 52. Ra1 {[%emt 0:0:20]} Rb2+ {[%emt 0:0:33]} 53. Kd3 {[%emt 0:0:1]
} Rh2 {[%emt 0:0:40]} 54. Ra8 {[%emt 0:0:7]} Rd4+ {[%emt 0:0:0]} 55. Ke3 {[%emt 0:0:1]} Rhd2 {[%emt 0:0:5]} 56. Rxe8+ {[%emt 0:0:7]} Kh7 {[%emt 0:0:1]} 57. Re7+ {[%emt 0:0:26]} Kh8 {[%emt 0:0:1]} 58. Rh6+ {[%emt 0:0:9]
} Kg8 {[%emt 0:0:1]} 59. Ne2 {[%emt 0:0:13]} R2d3+ {[%emt 0:0:0]} 60. Kf2 {[%emt 0:0:2]} Rxe4 {[%emt 0:0:2]} 61. Rg6+ {[%emt 0:0:8]
} Kh8 {[%emt 0:0:1]} 62. Rxf6 {[%emt 0:0:2]} Kg8 {[%emt 0:0:4]} 63. Re8+ {[%emt 0:0:1]} 1-0

[Event "FIDE World Rapid-ch Open 2018"]
[White "Kryakvin, Dmitry"]
[Black "Najer, Evgeniy"]
[Site "St. Petersburg"]
[Round "15.49"]
[Annotator "ChessBase"]
[Result "0-1"]
[Date "2018.12.28"]
[WhiteElo "2588"]
[BlackElo "2670"]
[PlyCount "70"]
[TimeControl "900+10"]

1. d4 {[%emt 0:0:0]} f5 {[%emt 0:0:0]} 2. Bf4 {[%emt 0:0:0]} Nf6 {[%emt 0:0:0]
} 3. e3 {[%emt 0:0:0]} g6 {[%emt 0:0:0]} 4. h4 {[%emt 0:0:0]} Bg7 {[%emt 0:0:25]} 5. h5 {[%emt 0:0:11]} d6 {[%emt 0:0:49]} 6. hxg6 {[%emt 0:0:48]
} hxg6 {[%emt 0:0:2]} 7. Rxh8+ {[%emt 0:0:2]} Bxh8 {[%emt 0:0:0]} 8. Bc4 {[%emt 0:0:23]} Nc6 {[%emt 0:0:16]} 9. Nc3 {[%emt 0:1:29]} e6 {[%emt 0:1:13]} 10. Nf3 {[%emt 0:0:26]} Qe7 {[%emt 0:0:50]} 11. d5 {[%emt 0:0:0]} Nd8 {[%emt 0:0:2]} 12. Qd2 {[%emt 0:2:57]} e5 {[%emt 0:1:8]} 13. Bg5 {[%emt 0:0:27]} Nf7 {[%emt 0:0:30]} 14. 0-0-0 {[%emt 0:0:24]} Bd7 {[%emt 0:1:11]
} 15. Nb5 {[%emt 0:0:53]} Bxb5 {[%emt 0:1:15]} 16. Bxb5+ {[%emt 0:0:4]
} Kf8 {[%emt 0:0:1]} 17. Rh1 {[%emt 0:0:32]} Nxg5 {[%emt 0:0:0]} 18. Nxg5 {[%emt 0:1:37]} Kg8 {[%emt 0:0:2]} 19. Rh6 {[%emt 0:2:24]} Qg7 {[%emt 0:0:48]} 20. Rh3 {[%emt 0:0:1]} a6 {[%emt 0:0:31]} 21. Be2 {[%emt 0:0:17]
} Rc8 {[%emt 0:0:55]} 22. Qb4 {[%emt 0:0:11]} c5 {[%emt 0:0:0]} 23. dxc6 {[%emt 0:1:14]} Rxc6 {[%emt 0:0:1]} 24. Qb3+ {[%emt 0:0:32]} d5 {[%emt 0:0:8]} 25. e4 {[%emt 0:0:7]} fxe4 {[%emt 0:0:57]} 26. Nxe4 {[%emt 0:0:19]
} Qf7 {[%emt 0:0:9]} 27. Ng5 {[%emt 0:0:42]} Qd7 {[%emt 0:0:0]} 28. Qg3 {[%emt 0:0:46]} Qf5 {[%emt 0:2:5]} 29. c3 {[%emt 0:0:31]} Bg7 {[%emt 0:0:24]} 30. Bd1 {[%emt 0:0:16]} b5 {[%emt 0:1:26]} 31. Bc2 {[%emt 0:0:0]} e4 {[%emt 0:0:2]} 32. Bb3 {[%emt 0:0:10]} b4 {[%emt 0:0:24]} 33. Rh4 {[%emt 0:0:16]} bxc3 {[%emt 0:0:5]} 34. Rf4 {[%emt 0:0:2]} cxb2+ {[%emt 0:0:7]
} 35. Kxb2 {[%emt 0:0:18]} Nh5+ {[%emt 0:0:20]} 0-1

[Event "FIDE World Rapid-ch Open 2018"]
[White "Ghaem Maghami, Ehsan"]
[Black "Esipenko, Andrey"]
[Site "St. Petersburg"]
[Round "15.50"]
[Annotator "ChessBase"]
[Result "1-0"]
[Date "2018.12.28"]
[WhiteElo "2537"]
[BlackElo "2593"]
[PlyCount "149"]
[TimeControl "900+10"]

1. e4 {[%emt 0:0:0]} e5 {[%emt 0:0:0]} 2. Nf3 {[%emt 0:0:3]} Nc6 {[%emt 0:0:0]
} 3. Bc4 {[%emt 0:0:2]} Bc5 {[%emt 0:0:0]} 4. 0-0 {[%emt 0:0:0]} Nf6 {[%emt 0:0:0]} 5. d3 {[%emt 0:0:3]} 0-0 {[%emt 0:0:2]} 6. c3 {[%emt 0:0:4]} a6 {[%emt 0:0:6]} 7. a4 {[%emt 0:0:42]} d6 {[%emt 0:0:27]} 8. Re1 {[%emt 0:0:45]} Ba7 {[%emt 0:0:8]} 9. Nbd2 {[%emt 0:0:8]} Re8 {[%emt 0:1:21]
} 10. Nf1 {[%emt 0:0:20]} Be6 {[%emt 0:0:4]} 11. Bg5 {[%emt 0:0:0]} h6 {[%emt 0:0:57]} 12. Bh4 {[%emt 0:0:3]} Bxc4 {[%emt 0:0:19]} 13. dxc4 {[%emt 0:0:4]} Nb8 {[%emt 0:0:1]} 14. N3d2 {[%emt 0:1:55]} Nbd7 {[%emt 0:0:17]
} 15. Qf3 {[%emt 0:0:23]} Qe7 {[%emt 0:0:17]} 16. Ne3 {[%emt 0:0:0]} Bxe3 {[%emt 0:0:26]} 17. Qxe3 {[%emt 0:0:9]} a5 {[%emt 0:0:46]} 18. f3 {[%emt 0:1:33]} Qe6 {[%emt 0:0:9]} 19. Bf2 {[%emt 0:0:17]} Nh5 {[%emt 0:0:0]} 20. g3 {[%emt 0:0:13]} Kh7 {[%emt 0:0:15]} 21. Qd3 {[%emt 0:0:14]} Rf8 {[%emt 0:1:7]} 22. b4 {[%emt 0:2:20]} Nhf6 {[%emt 0:1:18]} 23. Nf1 {[%emt 0:0:36]
} Rfc8 {[%emt 0:1:18]} 24. Ne3 {[%emt 0:0:28]} Qe8 {[%emt 0:0:0]} 25. Nd5 {[%emt 0:2:27]} Kg8 {[%emt 0:1:21]} 26. Reb1 {[%emt 0:0:47]} b6 {[%emt 0:0:34]} 27. Rd1 {[%emt 0:0:17]} Nxd5 {[%emt 0:0:35]} 28. cxd5 {[%emt 0:1:4]
} Nf8 {[%emt 0:0:23]} 29. Qb5 {[%emt 0:0:53]} Qxb5 {[%emt 0:0:0]} 30. axb5 {[%emt 0:0:1]} axb4 {[%emt 0:0:1]} 31. cxb4 {[%emt 0:0:4]} Rxa1 {[%emt 0:0:36]} 32. Rxa1 {[%emt 0:0:2]} Ng6 {[%emt 0:0:28]} 33. Ra7 {[%emt 0:1:29]
} Kf8 {[%emt 0:0:21]} 34. Kf1 {[%emt 0:0:49]} Ke8 {[%emt 0:0:0]} 35. Ke2 {[%emt 0:0:8]} Kd8 {[%emt 0:0:5]} 36. Kd3 {[%emt 0:0:17]} Rb8 {[%emt 0:0:3]} 37. Be3 {[%emt 0:0:7]} Ne7 {[%emt 0:0:12]} 38. g4 {[%emt 0:0:0]} Ng6 {[%emt 0:1:6]} 39. Ke2 {[%emt 0:0:9]} Nh4 {[%emt 0:0:39]} 40. Bf2 {[%emt 0:0:7]} Ng6 {[%emt 0:0:8]} 41. Be3 {[%emt 0:0:1]} Kd7 {[%emt 0:0:24]
} 42. Kf2 {[%emt 0:0:43]} Ne7 {[%emt 0:0:19]} 43. Ke2 {[%emt 0:0:0]} Ng8 {[%emt 0:2:9]} 44. Kf2 {[%emt 0:0:26]} Nf6 {[%emt 0:0:11]} 45. h3 {[%emt 0:0:17]} Nh7 {[%emt 0:0:31]} 46. h4 {[%emt 0:0:5]} Nf6 {[%emt 0:0:0]} 47. h5 {[%emt 0:0:6]} Ng8 {[%emt 0:0:9]} 48. Kg3 {[%emt 0:0:15]} Ne7 {[%emt 0:0:37]} 49. f4 {[%emt 0:0:20]} f6 {[%emt 0:0:19]} 50. Ra2 {[%emt 0:0:14]
} Nc8 {[%emt 0:0:14]} 51. Kf3 {[%emt 0:0:12]} Rb7 {[%emt 0:0:0]} 52. g5 {[%emt 0:0:3]} hxg5 {[%emt 0:0:22]} 53. fxg5 {[%emt 0:0:2]} fxg5 {[%emt 0:0:1]} 54. Kg4 {[%emt 0:0:28]} Ke7 {[%emt 0:0:40]} 55. Rf2 {[%emt 0:0:12]
} Ra7 {[%emt 0:0:18]} 56. Bxg5+ Ke8 57. Kf5 {[%emt 0:0:10]} Kf7 {[%emt 0:0:8]} 58. Rc2 {[%emt 0:0:4]} Rb7 {[%emt 0:0:26]} 59. Bd8 Na7 60. Rxc7+ {[%emt 0:0:18]} Rxc7 {[%emt 0:0:1]} 61. Bxc7 {[%emt 0:0:1]} Nxb5 {[%emt 0:0:3]
} 62. Bxb6 {[%emt 0:0:1]} Nc3 {[%emt 0:0:6]} 63. Be3 {[%emt 0:0:29]
} Nb5 {[%emt 0:0:3]} 64. Kg4 {[%emt 0:0:11]} Nc3 {[%emt 0:0:0]} 65. Kf3 {[%emt 0:0:3]} Ke7 {[%emt 0:0:28]} 66. Bd2 {[%emt 0:0:11]} Nb5 {[%emt 0:0:1]} 67. Ke2 {[%emt 0:0:15]} Nd4+ {[%emt 0:0:16]} 68. Ke3 {[%emt 0:0:8]
} Kd7 {[%emt 0:0:5]} 69. Bc3 {[%emt 0:0:24]} Nb5 {[%emt 0:0:0]} 70. Kd3 {[%emt 0:0:5]} Kc7 {[%emt 0:0:20]} 71. Bb2 {[%emt 0:0:10]} Kb6 {[%emt 0:0:8]} 72. Kc4 {[%emt 0:0:2]} Nc7 {[%emt 0:0:16]} 73. Bc1 {[%emt 0:0:3]
} Kb7 {[%emt 0:0:31]} 74. Bg5 {[%emt 0:0:6]} Kc8 {[%emt 0:0:0]} 75. Bf6 {[%emt 0:0:17]} 1-0

[Event "FIDE World Rapid-ch Open 2018"]
[White "Salgado Lopez, Ivan"]
[Black "Vastrukhin, Oleg"]
[Site "St. Petersburg"]
[Round "15.52"]
[Annotator "ChessBase"]
[Result "1/2-1/2"]
[Date "2018.12.28"]
[WhiteElo "2629"]
[BlackElo "2413"]
[PlyCount "138"]
[TimeControl "900+10"]

1. e4 {[%emt 0:0:0]} e6 {[%emt 0:0:0]} 2. d4 {[%emt 0:0:0]} d5 {[%emt 0:0:0]} 3. Nc3 {[%emt 0:0:0]} Bb4 {[%emt 0:0:0]} 4. Nge2 {[%emt 0:0:0]} dxe4 {[%emt 0:0:15]} 5. a3 {[%emt 0:0:0]} Bxc3+ {[%emt 0:0:3]} 6. Nxc3 {[%emt 0:0:1]
} Nc6 {[%emt 0:0:1]} 7. Bf4 {[%emt 0:0:2]} Nge7 {[%emt 0:0:0]} 8. Nxe4 {[%emt 0:0:29]} 0-0 {[%emt 0:1:4]} 9. Bd3 {[%emt 0:5:7]} Ng6 {[%emt 0:0:41]} 10. Qh5 {[%emt 0:0:50]} Qd5 {[%emt 0:1:30]} 11. Ng3 {[%emt 0:3:31]
} Qxh5 {[%emt 0:4:36]} 12. Nxh5 {[%emt 0:0:2]} Nxf4 {[%emt 0:0:0]} 13. Nxf4 {[%emt 0:0:2]} Nxd4 {[%emt 0:0:2]} 14. 0-0-0 {[%emt 0:0:0]} e5 {[%emt 0:0:15]} 15. Nd5 {[%emt 0:0:51]} c6 {[%emt 0:0:20]} 16. Ne7+ {[%emt 0:0:8]} Kh8 {[%emt 0:0:1]} 17. Rhe1 {[%emt 0:0:41]} f6 {[%emt 0:0:0]} 18. Nxc8 Raxc8 {[%emt 0:0:1]} 19. f4 {[%emt 0:0:13]} Rce8 {[%emt 0:0:0]} 20. Bc4 {[%emt 0:0:22]} b5 {[%emt 0:1:31]} 21. Ba2 {[%emt 0:0:2]} a5 {[%emt 0:0:55]
} 22. Re4 {[%emt 0:1:42]} Nf5 {[%emt 0:0:13]} 23. fxe5 {[%emt 0:1:7]
} Rxe5 {[%emt 0:1:14]} 24. Rxe5 {[%emt 0:0:2]} fxe5 {[%emt 0:0:0]} 25. Rf1 {[%emt 0:0:2]} Rf6 {[%emt 0:0:51]} 26. Re1 {[%emt 0:0:2]} Nh4 {[%emt 0:0:48]} 27. Rxe5 {[%emt 0:0:10]} g6 {[%emt 0:0:2]} 28. Re2 {[%emt 0:1:47]
} Rf1+ {[%emt 0:0:38]} 29. Kd2 {[%emt 0:0:2]} Rh1 {[%emt 0:0:0]} 30. Be6 {[%emt 0:0:15]} Rxh2 {[%emt 0:0:23]} 31. Bd7 {[%emt 0:0:3]} c5 {[%emt 0:0:16]} 32. Bc6 {[%emt 0:0:38]} b4 {[%emt 0:0:39]} 33. Kd3 {[%emt 0:0:0]} Nf5 {[%emt 0:0:19]} 34. Re5 {[%emt 0:0:42]} Nh4 {[%emt 0:1:14]} 35. Rxc5 {[%emt 0:0:27]} bxa3 {[%emt 0:0:18]} 36. bxa3 {[%emt 0:0:8]} Nxg2 {[%emt 0:0:1]
} 37. c4 {[%emt 0:0:25]} Ne1+ {[%emt 0:0:13]} 38. Kc3 {[%emt 0:0:0]} Rh3+ {[%emt 0:0:4]} 39. Kd2 {[%emt 0:0:17]} Nf3+ {[%emt 0:0:19]} 40. Bxf3 {[%emt 0:0:6]} Rxf3 {[%emt 0:0:1]} 41. Rxa5 {[%emt 0:0:1]} h5 {[%emt 0:0:7]
} 42. c5 {[%emt 0:0:30]} Rf5 {[%emt 0:0:5]} 43. Ra8+ {[%emt 0:0:0]} Kg7 {[%emt 0:0:0]} 44. c6 {[%emt 0:0:2]} Rc5 {[%emt 0:0:1]} 45. Rc8 {[%emt 0:0:1]} h4 {[%emt 0:0:3]} 46. Ke2 {[%emt 0:0:11]} h3 {[%emt 0:0:0]} 47. Kf2 {[%emt 0:0:14]} Rc2+ {[%emt 0:0:4]} 48. Kg1 {[%emt 0:0:2]} g5 {[%emt 0:0:5]} 49. Rd8 {[%emt 0:0:43]} Rxc6 {[%emt 0:0:7]} 50. Kh2 {[%emt 0:0:2]
} g4 {[%emt 0:0:3]} 51. Rd4 {[%emt 0:0:2]} Rc2+ {[%emt 0:0:0]} 52. Kh1 {[%emt 0:0:4]} Rg2 {[%emt 0:0:2]} 53. a4 {[%emt 0:0:4]} Kf6 {[%emt 0:0:9]} 54. a5 {[%emt 0:0:6]} g3 {[%emt 0:0:35]} 55. Rh4 {[%emt 0:0:0]} Rh2+ {[%emt 0:0:8]} 56. Kg1 {[%emt 0:0:2]} Kg5 {[%emt 0:0:2]} 57. Rh8 {[%emt 0:0:9]} Kf4 {[%emt 0:1:2]} 58. Rf8+ {[%emt 0:0:16]} Ke4 {[%emt 0:0:6]
} 59. Re8+ {[%emt 0:0:2]} Kd5 {[%emt 0:0:7]} 60. Rg8 {[%emt 0:0:8]
} Rg2+ {[%emt 0:0:2]} 61. Kh1 {[%emt 0:0:2]} Kc6 {[%emt 0:0:0]} 62. a6 {[%emt 0:0:36]} Kb6 {[%emt 0:0:4]} 63. Rg6+ {[%emt 0:0:6]} Ka7 {[%emt 0:0:1]} 64. Rh6 {[%emt 0:0:3]} Rh2+ {[%emt 0:0:45]} 65. Kg1 {[%emt 0:0:2]
} Rg2+ {[%emt 0:0:21]} 66. Kh1 {[%emt 0:0:1]} Ra2 {[%emt 0:0:0]} 67. Rxh3 {[%emt 0:0:7]} Rh2+ {[%emt 0:0:2]} 68. Rxh2 {[%emt 0:0:2]} gxh2 {[%emt 0:0:1]} 69. Kxh2 {[%emt 0:0:1]} Kxa6 {[%emt 0:0:1]} 1/2-1/2

[Event "FIDE World Rapid-ch Open 2018"]
[White "Roiz, Michael"]
[Black "Bilguun, Sumiya"]
[Site "St. Petersburg"]
[Round "15.53"]
[Annotator "ChessBase"]
[Result "1/2-1/2"]
[Date "2018.12.28"]
[WhiteElo "2605"]
[BlackElo "2497"]
[PlyCount "83"]
[TimeControl "900+10"]

1. Nf3 {[%emt 0:0:0]} d5 {[%emt 0:0:0]} 2. d4 {[%emt 0:0:0]} e6 {[%emt 0:0:0]} 3. g3 {[%emt 0:0:12]} c5 {[%emt 0:0:11]} 4. Bg2 {[%emt 0:0:3]} cxd4 {[%emt 0:0:5]} 5. 0-0 {[%emt 0:0:16]} Nf6 {[%emt 0:0:4]} 6. Nxd4 {[%emt 0:0:0]} Be7 {[%emt 0:0:8]} 7. c4 {[%emt 0:0:18]} 0-0 {[%emt 0:0:27]} 8. cxd5 {[%emt 0:0:9]} exd5 {[%emt 0:0:12]} 9. Nc3 {[%emt 0:1:31]} Nc6 {[%emt 0:0:39]
} 10. b3 {[%emt 0:0:14]} a6 {[%emt 0:2:44]} 11. Bb2 {[%emt 0:0:0]} Bc5 {[%emt 0:0:4]} 12. Nxc6 {[%emt 0:0:36]} bxc6 {[%emt 0:0:2]} 13. Rc1 {[%emt 0:0:4]} Bd6 {[%emt 0:1:20]} 14. e4 {[%emt 0:2:27]} Bg4 {[%emt 0:1:31]
} 15. Qd2 {[%emt 0:1:30]} Bb4 {[%emt 0:0:14]} 16. a3 {[%emt 0:0:0]} Bxc3 {[%emt 0:0:3]} 17. Qxc3 {[%emt 0:0:0]} Rc8 {[%emt 0:0:1]} 18. exd5 {[%emt 0:1:18]} cxd5 {[%emt 0:0:17]} 19. Qd3 {[%emt 0:0:39]} Qd6 {[%emt 0:0:35]
} 20. b4 {[%emt 0:0:27]} Be6 {[%emt 0:0:17]} 21. Rfd1 {[%emt 0:0:0]} Bg4 {[%emt 0:2:3]} 22. Re1 {[%emt 0:0:5]} Be6 {[%emt 0:0:48]} 23. Bd4 {[%emt 0:0:50]} Rfe8 {[%emt 0:0:26]} 24. Bf1 {[%emt 0:0:41]} Ra8 {[%emt 0:0:42]
} 25. Be5 {[%emt 0:0:18]} Qb6 {[%emt 0:0:10]} 26. Bd4 {[%emt 0:0:0]} Qd6 {[%emt 0:0:1]} 27. Be5 {[%emt 0:0:38]} Qf8 {[%emt 0:1:56]} 28. Bxf6 {[%emt 0:0:14]} gxf6 {[%emt 0:0:4]} 29. Qd4 {[%emt 0:0:6]} Kg7 {[%emt 0:1:8]
} 30. Rc6 {[%emt 0:0:9]} a5 {[%emt 0:0:2]} 31. bxa5 {[%emt 0:0:0]} Rxa5 {[%emt 0:0:7]} 32. a4 {[%emt 0:0:2]} Rea8 {[%emt 0:0:44]} 33. Bb5 {[%emt 0:0:12]} Rc8 {[%emt 0:0:40]} 34. Rxc8 {[%emt 0:1:1]} Qxc8 {[%emt 0:0:5]
} 35. h4 {[%emt 0:0:53]} Qc7 {[%emt 0:0:36]} 36. Qd2 {[%emt 0:0:0]} Ra8 {[%emt 0:0:12]} 37. Rc1 {[%emt 0:0:1]} Qe5 {[%emt 0:0:11]} 38. Re1 {[%emt 0:0:8]} Qc7 {[%emt 0:0:1]} 39. Rc1 {[%emt 0:0:8]} Qe5 {[%emt 0:0:1]
} 40. Re1 {[%emt 0:0:29]} Qc7 {[%emt 0:0:15]} 41. Ra1 {[%emt 0:0:0]} Qe5 {[%emt 0:0:8]} 42. Re1 {[%emt 0:0:25]} 1/2-1/2

[Event "FIDE World Rapid-ch Open 2018"]
[White "Nihal Sarin"]
[Black "Smirin, Ilia"]
[Site "St. Petersburg"]
[Round "15.54"]
[Annotator "ChessBase"]
[Result "0-1"]
[Date "2018.12.28"]
[WhiteElo "2576"]
[BlackElo "2609"]
[PlyCount "68"]
[TimeControl "900+10"]

1. e4 {[%emt 0:0:0]} g6 {[%emt 0:1:43]} 2. d4 {[%emt 0:0:8]} Bg7 {[%emt 0:0:0]} 3. Nc3 {[%emt 0:0:1]} d6 {[%emt 0:0:1]} 4. Be3 {[%emt 0:0:3]} a6 {[%emt 0:0:8]} 5. Nf3 {[%emt 0:0:11]} Nf6 {[%emt 0:0:9]} 6. h3 {[%emt 0:0:0]} 0-0 {[%emt 0:0:28]} 7. a4 {[%emt 0:0:11]} d5 {[%emt 0:0:27]} 8. e5 {[%emt 0:0:40]
} Ne4 {[%emt 0:0:2]} 9. Nxe4 {[%emt 0:0:2]} dxe4 {[%emt 0:0:0]} 10. Nd2 {[%emt 0:0:49]} c5 {[%emt 0:0:30]} 11. dxc5 {[%emt 0:1:8]} Bxe5 {[%emt 0:0:35]} 12. c3 {[%emt 0:0:44]} f5 {[%emt 0:1:14]} 13. Qb3+ {[%emt 0:0:49]
} Kg7 {[%emt 0:2:2]} 14. Nc4 {[%emt 0:1:30]} Be6 {[%emt 0:0:0]} 15. Qxb7 {[%emt 0:4:24]} Bd5 {[%emt 0:0:6]} 16. Qb3 {[%emt 0:0:5]} f4 {[%emt 0:0:57]} 17. Bd4 {[%emt 0:0:10]} Nc6 {[%emt 0:2:28]} 18. Rd1 {[%emt 0:2:38]
} Nxd4 19. cxd4 {[%emt 0:0:1]} Bc7 {[%emt 0:2:11]} 20. Qc2 {[%emt 0:0:56]
} e3 {[%emt 0:0:21]} 21. f3 {[%emt 0:1:15]} e5 {[%emt 0:1:45]} 22. h4 {[%emt 0:0:2]} e4 {[%emt 0:0:2]} 23. fxe4 {[%emt 0:0:59]} f3 {[%emt 0:0:2]
} 24. Nxe3 {[%emt 0:0:38]} Bg3+ {[%emt 0:1:5]} 25. Kd2 {[%emt 0:0:2]
} fxg2 {[%emt 0:0:2]} 26. Nxg2 {[%emt 0:0:52]} Rf2+ 27. Be2 Rxg2 {[%emt 0:0:11]} 28. Kc1 {[%emt 0:0:10]} Qe7 {[%emt 0:0:25]} 29. exd5 {[%emt 0:1:1]
} Rxe2 {[%emt 0:0:3]} 30. Qc3 {[%emt 0:0:3]} Bf4+ {[%emt 0:0:0]} 31. Kb1 {[%emt 0:0:1]} Rb8 {[%emt 0:0:2]} 32. d6 {[%emt 0:0:20]} Qb7 {[%emt 0:0:12]} 33. Ka1 {[%emt 0:0:17]} Qxb2+ {[%emt 0:0:21]} 34. Qxb2 {[%emt 0:0:1]
} Rbxb2 {[%emt 0:0:1]} 0-1

[Event "FIDE World Rapid-ch Open 2018"]
[White "Potapov, Pavel"]
[Black "Bosiocic, Marin"]
[Site "St. Petersburg"]
[Round "15.55"]
[Annotator "ChessBase"]
[Result "1/2-1/2"]
[Date "2018.12.28"]
[WhiteElo "2516"]
[BlackElo "2599"]
[PlyCount "84"]
[TimeControl "900+10"]

1. e4 {[%emt 0:0:0]} e5 {[%emt 0:0:0]} 2. Nf3 {[%emt 0:0:0]} Nc6 {[%emt 0:0:0]
} 3. Nc3 {[%emt 0:0:0]} Nf6 {[%emt 0:0:0]} 4. d4 {[%emt 0:0:0]} exd4 {[%emt 0:0:0]} 5. Nxd4 {[%emt 0:0:1]} Bb4 {[%emt 0:0:0]} 6. Nxc6 {[%emt 0:0:5]} bxc6 {[%emt 0:0:0]} 7. Bd3 {[%emt 0:0:4]} 0-0 {[%emt 0:0:1]
} 8. 0-0 {[%emt 0:0:3]} Re8 {[%emt 0:0:1]} 9. Qf3 {[%emt 0:0:0]} Rb8 {[%emt 0:0:47]} 10. Bg5 {[%emt 0:0:21]} Bd6 {[%emt 0:0:16]} 11. Rab1 {[%emt 0:0:39]} Be5 {[%emt 0:0:10]} 12. Bf4 {[%emt 0:0:21]} Qe7 {[%emt 0:0:23]
} 13. Bxe5 {[%emt 0:0:17]} Qxe5 {[%emt 0:0:1]} 14. Qg3 {[%emt 0:0:19]
} Qxg3 {[%emt 0:0:22]} 15. hxg3 {[%emt 0:0:3]} d5 {[%emt 0:0:0]} 16. exd5 {[%emt 0:0:12]} cxd5 {[%emt 0:0:2]} 17. b3 {[%emt 0:0:3]} Bd7 {[%emt 0:0:20]} 18. Rfe1 {[%emt 0:0:16]} Re6 {[%emt 0:0:13]} 19. f3 {[%emt 0:0:25]
} h5 {[%emt 0:0:4]} 20. Kf2 {[%emt 0:0:7]} c5 {[%emt 0:0:25]
} 21. Ne2 {[%emt 0:3:36]} Reb6 {[%emt 0:0:34]} 22. c3 {[%emt 0:0:36]} a5 {[%emt 0:0:27]
} 23. Bc2 {[%emt 0:0:17]} Kf8 {[%emt 0:0:45]} 24. Nf4 {[%emt 0:0:0]} c4 {[%emt 0:2:17]} 25. Rbd1 {[%emt 0:1:44]} cxb3 {[%emt 0:0:34]} 26. axb3 {[%emt 0:0:2]} a4 {[%emt 0:0:5]} 27. bxa4 {[%emt 0:0:31]} Rb2 {[%emt 0:0:20]
} 28. Re2 {[%emt 0:0:9]} Rxc2 {[%emt 0:0:43]} 29. Rxc2 {[%emt 0:0:4]
} Bxa4 {[%emt 0:0:2]} 30. Rcd2 {[%emt 0:0:7]} Bxd1 {[%emt 0:0:0]} 31. Rxd1 {[%emt 0:0:1]} Rb5 {[%emt 0:0:0]} 32. Ke3 {[%emt 0:0:53]} g6 {[%emt 0:2:47]} 33. Rd2 {[%emt 0:0:24]} Kg7 {[%emt 0:0:44]} 34. Kd4 {[%emt 0:0:41]
} g5 {[%emt 0:0:2]} 35. Nd3 {[%emt 0:0:30]} Rb8 {[%emt 0:0:0]} 36. Rb2 {[%emt 0:0:26]} Rc8 {[%emt 0:0:26]} 37. Ne5 {[%emt 0:0:4]} Rc7 {[%emt 0:0:1]} 38. Rb6 {[%emt 0:0:32]} Ng8 {[%emt 0:0:51]} 39. Nc6 {[%emt 0:2:19]
} Rd7 {[%emt 0:1:37]} 40. Ne5 {[%emt 0:0:35]} Rc7 {[%emt 0:0:0]} 41. Nc6 {[%emt 0:0:9]} Rd7 {[%emt 0:0:1]} 42. Ne5 {[%emt 0:0:32]} Rc7 {[%emt 0:0:1] Ke4} 1/2-1/2